bitfinex/quotes_ETHUSD_20240701
["timestamp","ask_amount","ask_price","bid_price","bid_amount"]
[1719792978268,3.0,3440.2,3439.7,0.07280147]
[1719792978537,0.146,3440.3,3439.9,0.83]
[1719792978927,0.146,3440.3,3440.0,0.07259666]
[1719792982245,0.146,3440.3,3440.1,0.83]
[1719792982447,0.146,3440.3,3440.2,0.07246013]
[1719792982648,0.146,3440.3,3440.2,2.2855]
[1719792982808,0.146,3440.3,3440.2,2.67532366]
[1719792988139,0.146,3440.3,3440.2,2.73345624]
[1719792989227,0.146,3440.3,3440.2,3.56345624]
[1719792989410,0.146,3440.3,3440.2,3.50532366]
[1719792996361,0.146,3440.3,3440.2,3.56344482]
[1719792996664,0.146,3440.3,3440.2,6.47024482]
[1719792998162,0.146,3440.3,3440.2,6.41212366]
[1719793000537,0.146,3440.3,3440.2,9.31892366]
[1719793001140,0.146,3440.3,3440.2,9.86892366]
[1719793002349,3.0,3441.9,3440.7,2.3204]
[1719793002552,7.32,3442.0,3440.6,2.90644]
[1719793002553,7.32,3442.0,3441.8,0.83]
[1719793002753,2.3679,3442.1,3441.8,0.83]
[1719793003076,2.3679,3442.1,3441.5,0.05810591]
[1719793003260,2.3679,3442.1,3441.6,0.90137771]
[1719793003463,2.3679,3442.1,3441.6,0.83]
[1719793003780,0.23679,3442.0,3441.6,0.83]
[1719793004278,3.23679,3442.0,3441.6,0.83]
[1719793005674,3.0,3442.0,3441.6,0.83]
[1719793005875,2.3263,3442.4,3441.6,0.83]
[1719793007050,2.3263,3442.4,3441.8,0.83]
[1719793008479,2.3263,3442.4,3441.6,0.83]
[1719793008663,2.3263,3442.4,3441.4,2.3204]
[1719793008858,1.34763,3442.3,3441.5,0.83]
[1719793009183,2.357,3442.2,3441.5,0.83]
[1719793009485,5.357,3442.2,3441.5,0.83]
[1719793012110,2.2938,3442.1,3441.1,2.4762]
[1719793012266,5.2938,3442.1,3441.3,0.83]
[1719793012461,0.664143,3442.0,3441.3,0.83]
[1719793012659,0.664143,3442.0,3441.4,0.0714541]
[1719793012851,3.664143,3442.0,3441.4,0.0714541]
[1719793013056,3.664143,3442.0,3441.3,0.83]
[1719793013299,0.5957943,3441.9,3441.4,0.0714541]
[1719793013506,0.5957943,3441.9,3441.0,0.83]
[1719793013507,2.3529,3441.8,3441.0,0.83]
[1719793013709,2.3529,3441.8,3441.1,0.07166253]
[1719793014309,2.3529,3441.8,3441.2,0.83]
[1719793014471,2.3529,3441.8,3441.4,0.83]
[1719793015591,3.0,3442.0,3441.5,0.0581099]
[1719793015755,3.0,3442.2,3441.8,0.83]
[1719793016205,0.732,3442.3,3441.8,0.83]
[1719793016206,3.732,3442.3,3441.8,0.83]
[1719793017285,3.0,3442.3,3442.1,0.83]
[1719793017496,2.2688,3442.4,3441.9,0.83]
[1719793017787,2.2688,3442.4,3441.7,0.83]
[1719793020673,2.2688,3442.4,3441.2,2.4431]
[1719793020855,2.2688,3442.4,3441.7,0.83]
[1719793021060,3.61068,3442.4,3441.7,0.83]
[1719793021495,3.0,3442.3,3441.7,0.83]
[1719793022019,8.15,3442.7,3441.8,2.3303]
[1719793022020,7.32,3442.7,3441.8,2.3303]
[1719793022289,7.32,3442.7,3442.6,0.83]
[1719793022516,2.3263,3443.1,3442.6,0.83]
[1719793022654,0.23263,3443.0,3442.4,0.83]
[1719793023673,3.23263,3443.0,3442.4,0.83]
[1719793024517,3.0,3443.0,3442.4,0.83]
[1719793024660,2.3573,3443.7,3442.8,0.83]
[1719793024866,5.3573,3443.7,3442.8,0.83]
[1719793025177,0.83,3443.6,3442.6,0.83]
[1719793025382,1.35073,3443.5,3442.6,0.83]
[1719793025579,1.35073,3443.5,3442.7,0.07055021]
[1719793025826,1.35073,3443.5,3442.8,0.83]
[1719793026310,1.35073,3443.5,3442.9,0.0704139]
[1719793027415,1.35073,3443.5,3443.0,0.83]
[1719793027627,3.0,3443.6,3443.0,0.83]
[1719793027768,5.3573,3443.7,3443.1,0.07027761]
[1719793028127,5.3573,3443.7,3443.0,0.83]
[1719793028805,3.0,3443.7,3443.0,0.83]
[1719793029006,3.0,3443.7,3443.2,0.83]
[1719793029331,4.26659,3443.7,3443.2,0.83]
[1719793029838,4.26659,3443.7,3443.2,0.88807999]
[1719793030989,4.26659,3443.7,3443.2,0.83]
[1719793031547,3.0,3443.7,3443.2,0.83]
[1719793031689,3.0,3443.7,3443.1,2.4924]
[1719793032021,3.0,3443.7,3443.2,0.90015232]
[1719793032318,3.0,3443.7,3443.2,0.83]
[1719793032723,3.0,3444.0,3443.2,0.83]
[1719793032946,2.4546,3443.9,3443.2,0.83]
[1719793033752,2.4546,3443.9,3443.1,2.4924]
[1719793035204,2.4546,3443.9,3442.5,2.4165]
[1719793035494,2.4546,3443.9,3441.9,2.4165]
[1719793035689,2.4381,3443.3,3442.3,0.83]
[1719793035950,0.83,3443.2,3442.4,0.07062911]
[1719793036092,3.2681,3442.5,3442.4,0.06067911]
[1719793036293,2.76491,3442.5,3441.4,0.05811098]
[1719793036549,0.83,3442.3,3441.2,0.83]
[1719793036728,0.83,3442.3,3441.4,0.83]
[1719793037045,0.83,3442.3,3440.9,2.4165]
[1719793037046,0.83,3442.1,3441.5,0.07091114]
[1719793037410,0.83,3442.1,3441.2,0.83]
[1719793037610,1.213,3442.1,3441.6,0.07084294]
[1719793037942,0.383,3442.1,3441.7,0.07077474]
[1719793038395,0.383,3442.1,3440.9,2.4165]
[1719793038796,0.383,3442.1,3441.0,0.07125222]
[1719793039492,0.55,3442.0,3441.0,0.07125222]
[1719793039696,0.55,3442.0,3440.5,2.3161]
[1719793039909,0.55,3442.0,3440.6,0.30313516]
[1719793040139,3.55,3442.0,3440.6,0.07152516]
[1719793040351,2.4992,3441.9,3440.6,0.07152516]
[1719793040605,2.4992,3441.9,3440.0,2.3161]
[1719793040606,0.55,3441.8,3440.0,2.3161]
[1719793040825,1.10392,3441.7,3440.1,0.43061]
[1719793041066,0.55,3441.6,3440.1,0.50247642]
[1719793044336,0.55,3441.6,3440.1,0.07186642]
[1719793044743,3.55,3441.6,3440.1,0.07186642]
[1719793045470,2.4583,3441.5,3440.1,0.07186642]
[1719793045647,5.4583,3441.5,3440.1,0.07186642]
[1719793045848,0.55,3441.4,3440.1,0.07186642]
[1719793046014,0.85483,3441.3,3440.1,0.07186642]
[1719793046213,0.55,3441.2,3439.6,69.28254555]
[1719793046578,0.55,3441.2,3439.7,0.05813362]
[1719793046708,0.55,3441.2,3439.7,0.13049845]
[1719793047149,0.55,3441.2,3439.7,0.07236483]
[1719793047328,0.440483,3441.1,3439.7,0.07236483]
[1719793047531,0.55,3441.0,3439.7,0.07236483]
[1719793048783,6.68441893,3445.6,3441.6,57.59313255]
[1719793049078,26.017247,3441.7,3441.6,57.59313255]
[1719793049212,26.024552,3441.7,3441.6,57.66420082]
[1719793049613,21.242658,3441.7,3441.6,57.66420082]
[1719793050777,21.792658,3441.7,3441.6,57.66420082]
[1719793050940,24.792658,3441.7,3441.6,57.66420082]
[1719793051627,27.250958,3441.7,3441.6,57.66420082]
[1719793051860,24.710958,3441.7,3441.6,57.66420082]
[1719793052067,12.7783,3441.7,3441.6,57.66420082]
[1719793052550,12.7783,3441.7,3441.6,57.59313255]
[1719793052551,31.719482,3441.7,3441.6,57.59313255]
[1719793052922,31.719482,3441.7,3441.6,57.66420082]
[1719793053122,32.269482,3441.7,3441.6,57.66420082]
[1719793053672,32.037552,3441.7,3441.6,57.66420082]
[1719793054463,35.04208885,3441.7,3441.6,57.66420082]
[1719793054930,32.12008885,3441.7,3441.6,57.66420082]
[1719793055133,13.3283,3441.7,3441.6,57.66420082]
[1719793055765,22.896236,3441.7,3441.6,57.66420082]
[1719793055970,21.985389,3441.7,3441.6,57.66420082]
[1719793057551,22.03603094,3441.7,3441.6,57.66420082]
[1719793062340,18.68374494,3441.7,3441.6,57.66420082]
[1719793062540,18.633103,3441.7,3441.6,57.66420082]
[1719793063952,19.183103,3441.7,3441.6,57.66420082]
[1719793064146,21.22842709,3441.7,3441.6,57.66420082]
[1719793064349,30.19003809,3441.7,3441.6,57.66420082]
[1719793065378,22.37715009,3441.7,3441.6,57.66420082]
[1719793065555,21.98712709,3441.7,3441.6,57.66420082]
[1719793066779,21.37629809,3441.7,3441.6,57.66420082]
[1719793067871,20.34429809,3441.7,3441.6,57.66420082]
[1719793068697,16.464769,3441.7,3441.6,57.66420082]
[1719793068896,13.3283,3441.7,3441.6,57.66420082]
[1719793070186,10.87,3441.7,3441.6,57.66420082]
[1719793070388,10.32,3441.7,3441.6,57.66420082]
[1719793070903,7.32,3441.7,3441.6,57.66420082]
[1719793072501,10.32,3441.7,3441.6,57.66420082]
[1719793072706,7.32,3441.7,3441.6,57.66420082]
[1719793073968,10.32,3441.7,3441.6,57.66420082]
[1719793074297,3.0,3441.7,3441.6,57.66420082]
[1719793074606,3.0,3442.1,3441.6,57.66420082]
[1719793074979,3.0,3442.2,3441.6,59.91610082]
[1719793077302,3.0,3442.2,3441.7,0.05810793]
[1719793077614,3.0,3442.2,3441.8,0.07094745]
[1719793078418,3.0,3442.2,3441.6,59.84503255]
[1719793078595,3.0,3442.2,3441.9,0.07087926]
[1719793078795,3.0,3442.2,3441.6,59.84503255]
[1719793078994,3.0,3442.2,3442.0,0.07079973]
[1719793079215,3.0,3442.2,3441.6,59.84503255]
[1719793079418,3.0,3442.2,3442.1,0.07072729]
[1719793079626,3.0,3442.2,3441.6,59.84503255]
[1719793079822,3.0,3442.2,3442.1,0.07072729]
[1719793080119,3.0,3442.2,3441.6,59.84503255]
[1719793080483,3.0,3442.5,3441.7,0.07100005]
[1719793082898,3.0,3442.5,3441.7,0.1291054]
[1719793083236,3.0,3442.5,3441.8,2.2851]
[1719793083588,3.0,3442.5,3441.9,0.07082303]
[1719793083785,3.0,3442.5,3442.0,2.4438]
[1719793084019,3.0,3442.5,3442.0,2.51455484]
[1719793085323,3.0,3442.5,3442.1,0.05809755]
[1719793085683,3.0,3442.5,3442.2,0.07058918]
[1719793086014,3.0,3442.5,3442.2,0.32783785]
[1719793086418,7.32,3443.0,3442.2,0.32783785]
[1719793086723,7.32,3443.0,3442.3,0.05809412]
[1719793087917,3.0,3442.9,3442.4,2.4608]
[1719793088622,3.0,3443.2,3442.4,2.4608]
[1719793088926,3.0,3443.2,3442.5,0.27180487]
[1719793094237,7.32,3443.3,3442.6,0.05809302]
[1719793094822,7.32,3443.3,3442.7,2.363]
[1719793095024,7.32,3443.7,3442.7,2.363]
[1719793095246,7.32,3443.7,3442.8,0.05808903]
[1719793095416,7.32,3443.7,3443.0,2.363]
[1719793095735,7.32,3443.7,3443.1,0.05807987]
[1719793095935,7.32,3443.7,3443.1,0.12320284]
[1719793096158,7.32,3443.7,3443.2,2.363]
[1719793096460,7.32,3443.7,3443.3,0.06498669]
[1719793096768,2.4221,3444.9,3443.4,0.24860666]
[1719793096769,7.32,3444.1,3443.4,0.24860666]
[1719793096995,19.79,3444.4,3443.3,0.05807822]
[1719793097306,19.79,3444.4,3443.2,2.363]
[1719793098118,3.0,3444.3,3443.2,2.363]
[1719793098744,2.3323,3444.2,3443.2,2.363]
[1719793098916,2.51223,3444.2,3443.2,2.363]
[1719793099108,3.0,3444.1,3443.2,2.363]
[1719793099308,3.0,3444.3,3443.2,2.363]
[1719793101264,3.0,3444.3,3442.9,2.5854089]
[1719793102537,4.99,3444.3,3442.9,2.5854089]
[1719793102717,0.55,3444.2,3442.9,2.5854089]
[1719793103059,1.286,3444.1,3442.9,2.5854089]
[1719793103414,1.286,3444.1,3442.9,2.3433]
[1719793103636,2.3369,3443.8,3442.9,2.3433]
[1719793103946,5.3369,3443.8,3442.9,2.3433]
[1719793108351,3.0,3443.8,3442.9,2.3433]
[1719793108548,7.32,3444.0,3442.9,2.3433]
[1719793108549,3.0,3443.9,3442.9,2.3433]
[1719793108745,3.0,3443.9,3443.0,0.23433]
[1719793111082,3.0,3443.9,3443.1,2.4849]
[1719793118214,3.0,3443.9,3443.3,2.4871]
[1719793118507,3.0,3443.9,3443.4,0.06266179]
[1719793118715,3.0,3443.9,3443.5,0.25497618]
[1719793119158,3.0,3444.3,3443.6,0.06252554]
[1719793119490,3.0,3444.3,3443.5,0.25497618]
[1719793126321,3.0,3444.3,3443.5,0.31305308]
[1719793126818,3.0,3444.3,3443.5,0.25497618]
[1719793128135,3.0,3444.3,3443.0,1.99]
[1719793128506,3.0,3444.3,3443.1,0.06076966]
[1719793129037,3.0,3444.3,3443.2,0.05807049]
[1719793129206,3.0,3444.3,3443.3,0.0580705]
[1719793129597,3.0,3444.3,3443.4,0.06056525]
[1719793129943,3.0,3444.3,3443.5,0.0580705]
[1719793132037,3.0,3444.3,3443.9,0.828]
[1719793133437,3.0,3444.3,3443.7,0.828]
[1719793136289,3.0,3444.3,3442.5,3.46713293]
[1719793136483,3.0,3444.3,3443.4,0.828]
[1719793136650,3.0,3444.3,3443.6,0.828]
[1719793138275,3.0,3444.3,3443.6,3.1574]
[1719793141545,5.4046,3444.3,3443.6,3.1574]
[1719793141808,0.21057827,3444.2,3443.6,2.3294]
[1719793142406,5.4046,3444.3,3443.6,2.3294]
[1719793142797,0.21057869,3444.2,3443.4,3.1071]
[1719793143007,0.21057869,3444.2,3443.4,3.41781]
[1719793143149,0.21057869,3444.2,3443.8,2.2791]
[1719793143357,3.0,3444.3,3443.8,2.2791]
[1719793154281,0.21065379,3444.2,3443.8,2.2791]
[1719793154798,3.0,3444.3,3443.8,2.2791]
[1719793155021,0.21065255,3444.2,3443.8,2.2791]
[1719793155307,3.0,3444.3,3443.8,2.2791]
[1719793155500,0.21065416,3444.2,3443.8,2.2791]
[1719793156208,0.21065416,3444.2,3443.8,2.58981]
[1719793157791,3.0,3444.3,3443.8,2.58981]
[1719793157989,0.2106651,3444.2,3443.8,2.58981]
[1719793158826,3.0,3444.3,3444.1,0.828]
[1719793159237,3.0,3444.7,3444.1,0.828]
[1719793159430,0.21069772,3444.6,3444.1,0.828]
[1719793159651,0.21069772,3444.6,3444.1,1.17558771]
[1719793159801,0.21069772,3444.6,3444.1,0.34758771]
[1719793161120,2.3058,3444.6,3442.7,2.3552]
[1719793161330,0.21067098,3444.5,3443.6,0.828]
[1719793161510,3.21067098,3444.5,3443.6,0.828]
[1719793161707,0.21067098,3444.4,3443.7,0.31362]
[1719793162229,0.21067098,3444.4,3443.8,0.06013727]
[1719793162591,2.2599,3444.3,3443.8,0.06013727]
[1719793162874,0.21067098,3444.2,3443.8,0.828]
[1719793163045,0.21067098,3444.1,3443.8,0.828]
[1719793163216,2.2599,3444.5,3443.9,0.06007335]
[1719793163534,2.2599,3444.5,3443.8,0.828]
[1719793163535,0.21068143,3444.4,3443.8,0.828]
[1719793163731,0.21068143,3444.4,3443.8,1.172982]
[1719793164111,2.2599,3444.5,3443.8,1.172982]
[1719793164321,0.2106793,3444.4,3443.8,1.172982]
[1719793166406,0.2106793,3444.4,3443.8,1.56555931]
[1719793166729,0.2106793,3444.4,3443.8,2.39355931]
[1719793167434,2.2599,3444.5,3443.8,2.39355931]
[1719793167625,0.21064306,3444.4,3443.8,2.39355931]
[1719793167820,0.21064253,3444.3,3443.8,2.39355931]
[1719793168009,0.21064253,3444.2,3443.8,2.39355931]
[1719793168210,2.2599,3444.5,3443.8,2.39355931]
[1719793168432,0.21064584,3444.4,3443.8,2.39355931]
[1719793168627,3.21064584,3444.4,3443.8,2.39355931]
[1719793168933,0.21064584,3444.3,3443.8,2.39355931]
[1719793169435,0.21064584,3444.3,3443.8,1.56555931]
[1719793169632,0.21064584,3444.3,3443.8,2.39355931]
[1719793170610,0.21064579,3444.2,3443.8,2.39355931]
[1719793170916,3.0,3444.4,3443.8,2.39355931]
[1719793171118,0.21064449,3444.3,3443.8,2.39355931]
[1719793172241,0.21064449,3444.3,3444.0,0.828]
[1719793172737,0.21064449,3444.2,3444.0,0.828]
[1719793173047,4.39264698,3444.7,3444.0,0.828]
[1719793173337,0.21061232,3444.6,3444.3,2.3211]
[1719793173732,3.0,3444.8,3444.3,2.3211]
[1719793173930,0.21061403,3444.7,3444.3,2.3211]
[1719793175733,0.21061403,3444.7,3444.2,3.3032]
[1719793175941,0.21061403,3444.7,3444.4,0.828]
[1719793176109,7.32,3445.1,3444.4,0.828]
[1719793176110,0.21061403,3444.6,3444.4,0.828]
[1719793176447,2.62463576,3444.5,3443.9,2.362]
[1719793176642,2.414,3444.1,3442.7,2.362]
[1719793176868,2.414,3444.1,3443.0,0.828]
[1719793176869,0.828,3444.0,3443.0,0.828]
[1719793177048,0.21058855,3443.9,3443.0,0.828]
[1719793177267,0.21058855,3443.9,3442.7,2.362]
[1719793177435,0.21058855,3443.9,3443.0,0.828]
[1719793177636,0.21058855,3443.9,3441.7,2.90553]
[1719793177637,0.828,3443.1,3441.6,59.98793255]
[1719793177831,0.828,3442.8,3441.7,0.828]
[1719793178048,0.828,3442.8,3441.7,0.88750464]
[1719793179531,0.828,3442.8,3441.9,0.828]
[1719793179729,3.0,3443.0,3441.7,0.05950464]
[1719793179918,0.3828,3442.7,3442.0,0.05930006]
[1719793180114,0.3828,3442.7,3441.8,0.05943644]
[1719793180546,0.3828,3442.7,3441.6,59.98793255]
[1719793180747,0.3828,3442.7,3441.9,0.05936825]
[1719793180955,0.3828,3442.7,3441.7,0.05950464]
[1719793181130,0.3828,3442.7,3442.0,0.05930006]
[1719793181339,0.3828,3442.7,3441.6,59.98793255]
[1719793181535,2.3862,3442.6,3442.1,0.05923188]
[1719793181728,0.2769,3442.5,3441.6,57.59313255]
[1719793181931,3.2769,3442.5,3442.2,0.0591637]
[1719793182128,3.2769,3442.5,3441.6,57.59313255]
[1719793182329,3.2769,3442.5,3442.3,0.05909552]
[1719793182569,3.2769,3442.5,3441.6,57.59313255]
[1719793182759,0.60459,3442.4,3441.6,57.59313255]
[1719793183064,0.60459,3442.4,3441.7,0.05950464]
[1719793185554,0.60459,3442.4,3441.7,0.11761251]
[1719793185732,0.2769,3442.5,3441.7,0.11761251]
[1719793188063,3.0,3442.6,3441.7,0.11761251]
[1719793188273,3.0,3442.6,3441.7,0.05950464]
[1719793192967,3.0,3442.6,3441.8,2.4356]
[1719793193370,3.0,3442.6,3441.9,0.05951275]
[1719793193770,7.32,3443.3,3442.1,2.3733]
[1719793193973,7.32,3443.3,3442.2,0.44218128]
[1719793194138,7.32,3443.3,3442.2,0.05930866]
[1719793195053,3.0,3443.2,3442.2,0.05930866]
[1719793197783,3.0,3443.2,3442.3,2.409]
[1719793197943,3.0,3443.2,3442.4,2.46708545]
[1719793198373,3.0,3443.2,3442.5,0.05713258]
[1719793199783,3.0,3443.2,3441.6,54.95366513]
[1719793199989,3.0,3443.2,3442.6,0.05515262]
[1719793200185,3.0,3443.2,3442.0,1.989]
[1719793200518,2.90489,3442.5,3442.1,0.05549395]
[1719793202601,2.90495,3442.4,3442.1,0.05549395]
[1719793202821,2.90495,3442.4,3442.3,2.4579]
[1719793203318,2.90495,3442.4,3442.3,2.51325805]
[1719793203899,2.90495,3442.4,3442.3,3.34125805]
[1719793204320,2.90494,3442.5,3442.3,3.34125805]
[1719793204487,3.0,3443.2,3442.3,3.34125805]
[1719793204828,2.90455,3442.9,3442.4,0.05808846]
[1719793205035,2.90474,3442.7,3442.4,0.05808846]
[1719793205198,2.90455,3442.9,3442.6,0.828]
[1719793205390,2.90455,3442.9,3442.5,0.05522493]
[1719793205391,2.90461,3442.8,3442.5,0.05522493]
[1719793205592,2.90461,3442.8,3442.7,0.828]
[1719793205991,2.90461,3442.8,3442.7,0.88308815]
[1719793206188,2.90433,3443.2,3442.8,2.4517]
[1719793206490,2.90433,3443.2,3443.0,0.828]
[1719793207026,2.90433,3443.2,3443.1,0.05480772]
[1719793207181,10.22384,3443.8,3443.1,0.05480772]
[1719793207182,2.90413,3443.4,3443.1,0.05480772]
[1719793207382,7.32,3443.8,3443.4,2.4517]
[1719793207383,2.90388,3443.7,3443.4,2.4517]
[1719793207588,2.90393,3443.6,3443.5,0.05807448]
[1719793207810,2.90393,3443.6,3443.5,0.05450156]
[1719793207996,7.32,3443.8,3443.5,0.50382172]
[1719793208202,2.90387,3443.7,3443.6,0.0580718]
[1719793208413,2.90387,3443.7,3443.5,0.50382172]
[1719793208633,2.90402,3443.5,3443.4,2.4517]
[1719793209798,5.80804,3443.5,3443.4,2.4517]
[1719793214625,7.32,3444.1,3443.0,1.987]
[1719793214626,2.9044,3443.1,3443.0,2.3194]
[1719793214939,2.9044,3443.1,3443.0,2.37421738]
[1719793215735,2.90413,3443.4,3443.0,2.37421738]
[1719793216314,2.90413,3443.4,3443.0,2.81033912]
[1719793217416,2.90413,3443.4,3443.1,1.987]
[1719793217618,7.32,3444.1,3443.1,1.987]
[1719793217936,7.32,3444.1,3443.2,2.53468248]
[1719793220939,7.27,3444.1,3443.2,2.53468248]
[1719793221101,7.27,3444.1,3443.3,0.49578042]
[1719793221307,7.27,3444.1,3443.2,2.53468248]
[1719793221525,7.27,3444.1,3443.4,0.05451491]
[1719793221729,7.27,3444.1,3443.3,0.05458304]
[1719793222007,7.27,3444.1,3443.5,0.05444678]
[1719793222224,7.27,3444.1,3443.4,0.05451491]
[1719793222435,8.297,3444.1,3443.6,0.05437865]
[1719793222625,8.297,3444.1,3443.5,0.05444678]
[1719793222830,8.297,3444.1,3443.7,0.05431053]
[1719793223039,8.297,3444.1,3443.6,0.05437865]
[1719793223237,1.027,3444.1,3443.8,0.05424242]
[1719793223408,3.0,3444.4,3443.7,0.05431053]
[1719793223726,3.0,3444.4,3443.2,2.48]
[1719793223914,3.0,3444.4,3443.8,0.05424242]
[1719793224109,3.0,3444.4,3443.2,2.48]
[1719793224306,3.0,3444.4,3443.9,0.0541743]
[1719793224507,1.2733,3444.3,3443.2,2.48]
[1719793224737,1.2733,3444.3,3443.3,0.05458304]
[1719793225452,3.0,3444.4,3443.4,2.04507308]
[1719793225664,3.0,3444.4,3443.4,1.987]
[1719793226166,3.0,3444.4,3443.5,0.05444678]
[1719793226470,3.0,3444.4,3443.6,2.308]
[1719793226852,3.0,3444.4,3443.7,0.11237212]
[1719793227045,3.0,3444.4,3443.8,0.24203721]
[1719793227242,3.0,3444.4,3443.9,0.05806573]
[1719793227449,3.0,3444.4,3443.9,0.11223175]
[1719793227646,3.0,3444.4,3443.8,0.24203721]
[1719793228040,3.0,3444.4,3443.9,0.05416602]
[1719793228441,3.0,3444.4,3443.6,2.308]
[1719793228637,3.0,3444.4,3443.6,2.7375]
[1719793228967,3.0,3444.4,3443.7,0.05429673]
[1719793231579,2.2691,3444.3,3443.1,2.4489]
[1719793232054,2.2691,3444.3,3443.2,0.09111686]
[1719793234550,3.0,3444.4,3443.2,0.09111686]
[1719793237883,3.0,3444.4,3443.6,0.828]
[1719793238094,1.027,3444.3,3443.6,0.828]
[1719793239388,1.027,3444.3,3443.8,0.828]
[1719793239894,1.027,3444.3,3443.8,3.2809]
[1719793240074,3.0,3444.4,3443.8,3.2809]
[1719793241710,3.0,3444.4,3443.9,0.05806729]
[1719793241874,7.27,3444.5,3444.0,0.828]
[1719793242276,7.27,3444.5,3444.1,0.09049055]
[1719793242602,7.27,3444.5,3444.0,0.828]
[1719793242801,22.74,3444.9,3444.2,0.09041679]
[1719793242993,5.50799,3444.8,3444.2,0.09041679]
[1719793243167,5.50799,3444.8,3444.0,0.828]
[1719793244598,5.50799,3444.8,3444.2,0.828]
[1719793244779,5.50799,3444.8,3444.0,0.828]
[1719793246877,3.0,3444.8,3443.8,2.4529]
[1719793247209,3.0,3444.8,3444.4,0.828]
[1719793248666,3.0,3444.8,3444.0,3.1338]
[1719793249204,2.3177,3444.7,3444.1,0.09047353]
[1719793249579,2.3177,3444.7,3443.8,0.828]
[1719793249880,2.3177,3444.7,3444.2,0.09040114]
[1719793250083,2.3177,3444.7,3443.8,0.828]
[1719793250290,2.3177,3444.7,3444.3,0.09033199]
[1719793250483,2.3177,3444.7,3443.8,0.828]
[1719793250774,2.3177,3444.7,3443.9,0.0906114]
[1719793252107,2.3177,3444.7,3443.6,2.3058]
[1719793252275,3.0,3444.8,3444.0,0.09054407]
[1719793252482,3.0,3444.8,3443.7,0.23058]
[1719793252973,3.0,3444.8,3443.8,0.09067135]
[1719793253393,7.27,3444.9,3443.9,2.36576357]
[1719793253600,7.27,3444.9,3443.9,2.39830218]
[1719793253794,7.27,3444.9,3444.0,0.46148822]
[1719793253994,7.27,3444.9,3444.0,0.55202123]
[1719793258405,7.27,3444.9,3444.1,2.4109]
[1719793258635,7.27,3444.9,3444.1,2.50136385]
[1719793258925,7.27,3444.9,3444.2,0.05805997]
[1719793259130,7.27,3444.9,3444.3,0.3020912]
[1719793259295,7.27,3444.9,3444.4,0.05805831]
[1719793259908,10.27,3445.3,3444.5,2.4109]
[1719793260231,10.27,3445.3,3444.6,0.0901121]
[1719793260431,10.27,3445.3,3444.7,0.25010121]
[1719793260634,10.27,3445.3,3444.7,0.09004066]
[1719793260934,10.27,3445.3,3444.5,2.4109]
[1719793261144,10.27,3445.3,3444.8,0.08997107]
[1719793261429,10.27,3445.3,3444.1,2.365]
[1719793261635,2.4093,3445.2,3444.9,0.08990193]
[1719793261832,3.67723,3445.2,3444.1,2.365]
[1719793262003,3.0,3445.1,3445.0,0.0898328]
[1719793262199,5.4093,3445.2,3444.1,2.365]
[1719793262505,5.4093,3445.2,3445.0,0.0898328]
[1719793262839,5.4093,3445.2,3444.1,2.365]
[1719793263035,3.0,3445.2,3445.1,0.08976368]
[1719793263250,3.0,3445.2,3444.8,2.365]
[1719793264954,3.0,3445.2,3444.2,2.365]
[1719793265255,3.0,3445.6,3444.9,0.08988307]
[1719793265449,0.21052916,3445.5,3444.3,0.48124882]
[1719793265629,3.0,3445.6,3444.4,2.2759]
[1719793265837,3.0,3445.6,3444.4,2.36612647]
[1719793266055,3.0,3445.6,3444.5,0.28473753]
[1719793266429,3.0,3445.6,3444.6,0.14814023]
[1719793266623,3.0,3445.6,3444.7,2.3013]
[1719793266820,3.0,3445.6,3444.8,0.05805202]
[1719793267657,3.0,3445.6,3444.9,0.08987019]
[1719793267879,2.3477,3446.0,3445.1,2.3013]
[1719793267880,7.27,3446.0,3445.1,2.3013]
[1719793268163,2.3477,3446.4,3445.1,2.3013]
[1719793268355,7.27,3447.1,3445.8,1.986]
[1719793268356,2.3477,3446.9,3445.8,1.986]
[1719793268519,2.3477,3446.9,3445.9,2.55793209]
[1719793268856,2.3477,3446.9,3446.0,0.08909069]
[1719793269430,0.21058439,3446.8,3445.1,2.3103]
[1719793269648,2.3477,3446.9,3446.1,0.08897747]
[1719793269649,0.21056975,3446.7,3446.1,0.08897747]
[1719793269959,0.21056975,3446.7,3445.1,2.3103]
[1719793269960,2.3477,3446.9,3445.1,2.3103]
[1719793270117,2.3444,3446.7,3445.1,2.56582222]
[1719793270321,2.3444,3446.7,3445.2,0.08959937]
[1719793270745,5.3444,3446.7,3445.2,0.08959937]
[1719793271932,3.0,3446.7,3445.3,2.3527]
[1719793272264,7.27,3447.1,3445.6,2.3527]
[1719793272265,3.0,3447.0,3445.6,2.3527]
[1719793272670,3.0,3447.0,3445.7,0.0892667]
[1719793273574,2.4961,3446.9,3445.7,0.0892667]
[1719793273761,1.47521,3446.8,3445.1,2.3241]
[1719793273960,4.47521,3446.8,3445.1,2.3241]
[1719793274270,1.986,3446.6,3445.2,0.08953131]
[1719793274595,4.986,3446.6,3445.2,0.08953131]
[1719793274738,0.895731,3446.5,3445.2,0.08953131]
[1719793274934,3.895731,3446.5,3445.2,0.08953131]
[1719793275450,3.895731,3446.5,3445.2,0.14757673]
[1719793276060,3.895731,3446.5,3445.2,0.14757671]
[1719793276456,3.895731,3446.5,3445.2,0.08953131]